Cogmind - Beta 13 @@@ ROGUE MODE // 2024.07.28 @ 18:30:18 Player: Sgt. SmokeWeed Result: Destroyed by H-61 Shepherd with Heavy Assault Cannon Performance ------------- Evolutions (2) 1000 Regions Visited (7) 1400 Robots Destroyed (88) 440 Value Destroyed (1803) 1803 Prototype IDs (27) 540 Alien Tech Used (0) 0 Bonus (365) 365 TOTAL SCORE: 5548 Bonus ------- High Alert Combat Kills 65 Aligned with FarCom 300 Cogmind --------- Core Integrity 0/550 Matter 260/300 Energy 125/125 System Corruption 4% Temperature Cool (22) Movement Treading (145) Location -8/Materials Parts ------- > --- POWER (1) -------- Light Ion Engine > --- PROPULSION (2) --- Advanced Treads > --- UTILITY (4) ------ Improved Melee Analysis Suite Backup Plating III Hacking Suite System Shield > --- WEAPON (4) ------- Improved Light Cannon Improved Light Cannon Mini Grenade Launcher Heavy Flail > --- INVENTORY (5) ---- Improved Light Cannon Improved Light Cannon Improved Light Cannon Improved Light Cannon Peak State ------------ > --- POWER ------------ Light Nuclear Core > --- PROPULSION ------- Backup Propulsion III > --- UTILITY ---------- Improved Melee Analysis Suite Backup Plating III Backup Plating III System Shield > --- WEAPON ----------- Advanced Beam Cannon Advanced Beam Cannon Advanced Beam Cannon Heavy Flail > --- INVENTORY -------- Backup Plating III [Rating: 31] Favorites ----------- Power Ion Engine Engine Ion Engine Power Core Light Nuclear Core Propulsion Light Treads Treads Light Treads Wheel Wheel Hover Unit Backup Propulsion III Utility Hardened Light Armor Plating Device Particle Charger Processor Improved Targeting Computer Hackware System Shield Protection Hardened Light Armor Plating Weapon Grenade Launcher Energy Gun Improved EM Shotgun Energy Cannon Guided Plasma Cannon Ballistic Gun High-powered Shotgun Ballistic Cannon Light Cannon Launcher Grenade Launcher Impact Weapon Hammer Build | -11 -10 -10 -9 -9 -9 -8 -8 ------- Run | Yrd Mat Min Mat Min Exi Min Mat Slots Evolved 4 | . . . 2 . . . 2 Power . | . . . . . . . . Propulsion . | . . . . . . . . Utility 2 | . . . . . . . 2 Weapon 2 | . . . 2 . . . . Parts Attached 65 | 5 3 . 4 6 1 2 44 Power 7 | 1 1 . 1 1 . . 3 Engine 5 | 1 1 . 1 1 . . 1 Core 2 | . . . . . . . 2 Reactor . | . . . . . . . . Propulsion 12 | 2 . . . 2 . . 8 Treads 8 | 2 . . . 2 . . 4 Leg . | . . . . . . . . Wheel 3 | . . . . . . . 3 Hover 1 | . . . . . . . 1 Flight . | . . . . . . . . Utility 17 | . . . 2 1 . 1 13 Device 1 | . . . . . . . 1 Storage . | . . . . . . . . Processor 2 | . . . . 1 . . 1 Hackware 2 | . . . . . . . 2 Protection 12 | . . . 2 . . 1 9 Artifact . | . . . . . . . . Weapon 29 | 2 2 . 1 2 1 1 20 Energy Gun 6 | . . . . 1 . . 5 Energy Cannon 4 | . . . . . 1 . 3 Ballistic Gun 5 | 2 . . . . . 1 2 Ballistic Cannon 4 | . 2 . . . . . 2 Launcher 5 | . . . . 1 . . 4 Special Weapon . | . . . . . . . . Impact Weapon 5 | . . . 1 . . . 4 Slashing Weapon . | . . . . . . . . Piercing Weapon . | . . . . . . . . Special Melee Weapon . | . . . . . . . . Unidentified Prototypes 4 | . . . . . . . 4 Parts Lost 27 | . . . 8 . . . 19 Power 4 | . . . 2 . . . 2 Propulsion 5 | . . . 2 . . . 3 Utility 8 | . . . 2 . . . 6 Weapon 10 | . . . 2 . . . 8 Highest Loss Streak 10 | . . . 8 . . . 10 To Critical Strikes . | . . . . . . . . Average Slot Usage (%) 79 | . 71 71 60 51 81 99 86 Engine 5 | . 14 14 9 9 11 11 . Core 3 | . . . . . . . 6 Treads 16 | . 28 28 21 22 22 22 11 Processor 6 | . . . . . 11 11 9 Hackware 2 | . . . . . . . 5 Protection 11 | . . . 9 . . 10 18 Energy Gun 5 | . . . . 4 11 1 7 Energy Cannon 5 | . . . . . 4 11 7 Ballistic Gun 3 | . 21 . . . . 9 2 Ballistic Cannon 3 | . 6 28 19 . . . . Launcher 6 | . . . . 4 11 11 7 Impact Weapon 5 | . . . . 11 11 11 4 Naked Turns . | . . . . . . . . Heaviest Build 39 | 9 11 11 17 13 23 25 39 Greatest Support 40 | 40 40 40 40 40 40 40 40 Greatest Overweight (x) 3 | 2 . . . . . . 3 Average Overweight (x) . | . . . . . . . . Largest Inventory Capacity 5 | 5 5 5 5 5 5 5 5 Average Capacity 5 | 5 5 5 5 5 5 5 5 Most Carried 4 | . 1 . 2 1 . . 4 Average Carried 1 | . . . 1 . . . 1 Final Capacity 5 | 5 5 5 5 5 5 5 5 Final Carried 4 | . . . 2 . . . 4 Class Distribution -------------------- 39% | Mutant 21% | Skirmisher 17% | Bomber 9% | Tank 6% | Hacker-Mutant 3% | Gunner Dominant Class ---------------- Mutant | -10/Materials Mutant | -10/Mines Mutant | -9/Materials Mutant | -9/Mines Mutant | -9/Exiles Skirmisher | -8/Mines Bomber | -8/Materials Resources | -11 -10 -10 -9 -9 -9 -8 -8 ----------- Run | Yrd Mat Min Mat Min Exi Min Mat Matter Collected 1522 | 222 76 28 208 141 . 16 831 Remotely . | . . . . . . . . Salvage Created 2013 | . 76 27 338 167 . 41 1364 Parts 116 | . 7 6 25 3 . 4 71 Haulers Intercepted 6 | . . . 1 . . . 5 Recyclers Shooed 3 | . . 1 1 . . . 1 Parts Field Recycled . | . . . . . . . . Retrieved Matter . | . . . . . . . . Parts Self-Destructed . | . . . . . . . . Prevented . | . . . . . . . . Kills | -11 -10 -10 -9 -9 -9 -8 -8 ------- Run | Yrd Mat Min Mat Min Exi Min Mat Combat Hostiles Destroyed 54 | . 2 4 13 4 . 3 28 Melee 4 | . . . . 2 . . 2 Guns 7 | . 2 . . . . . 5 Cannons 19 | . . 4 13 . . 1 1 AOE 16 | . . . . . . 2 14 Classes Destroyed 16 | . 1 2 4 . . 2 7 Worker 11 | . . . . . . . 11 Builder 10 | . . . . . . 1 9 Tunneler 1 | . . . . . . 1 . Hauler 6 | . . . 1 . . . 5 Recycler 1 | . . . 1 . . . . Mechanic 1 | . . . . . . . 1 Operator 1 | . . . . . . . 1 Watcher 4 | . . . . . . . 4 Swarmer 24 | . . 3 8 . . 3 10 Grunt 19 | . 2 . 2 3 . . 12 Brawler 2 | . . . 1 1 . . . Duelist 1 | . . . . . . . 1 Sentry 4 | . . . 2 . . . 2 Specialist 2 | . . . . . . . 2 Hunter 1 | . . . . . . . 1 Assembled 1 | . . 1 . . . . . Best Kill Streak 7 | . 2 3 7 2 . 4 7 Combat Bots Only 7 | . 2 3 7 2 . 3 5 Max Kills in Single Turn 4 | . 1 1 1 1 . 1 4 Gunslinging . | . . . . . . . . Exploded 4 | . . . . . . 1 4 Melee 1 | . . . . 1 . . 1 Uniques/NPCs Destroyed . | . . . . . . . . Combat | -11 -10 -10 -9 -9 -9 -8 -8 -------- Run | Yrd Mat Min Mat Min Exi Min Mat Hostile Shots Fired 403 | . 11 7 147 11 . 6 221 Missed 99 | . 3 2 40 2 . 2 50 Damage Taken 3769 | . 88 36 949 185 . 34 2477 Core 762 | . . 14 186 . . . 562 Absorbed by Shields . | . . . . . . . . Redirected to Shielding 40 | . . . . . . 11 29 Regen/Repaired (Parts) 116 | . . . . . . . 116 Core Remaining (%) 82 | 100 . 94 . . . 53 . Volleys Fired 120 | . 9 6 33 . . 3 69 Largest 3 | . 2 2 2 . . 2 3 Hottest 120 | . 40 70 70 . . 120 120 Shots Fired 201 | . 18 12 62 . . 5 104 Gun 80 | . 18 . . . . 2 60 Cannon 85 | . . 12 62 . . 1 10 Launcher 36 | . . . . . . 2 34 Special . | . . . . . . . . Kinetic 119 | . 18 12 62 . . 2 25 Thermal 9 | . . . . . . 1 8 Explosive 36 | . . . . . . 2 34 Electromagnetic 37 | . . . . . . . 37 Robot Hit Streak 11 | . 8 2 10 . . 1 11 Robot Miss Streak 7 | . 2 2 3 . . 7 4 Penetration Max . | . . . . . . . . Secondary Targets 1 | . . . . . . . 1 Max Gunslinging Chain 1 | . . . . . . . 1 Shots Hit Robots 169 | . 12 6 36 7 . 2 106 Core Hits 108 | . 4 5 17 2 . 4 76 Critical Kills 3 | . . . . 1 . . 2 Critical Parts Destroyed 12 | . . . . 1 . . 11 Critical Strikes 17 | . . . 2 2 . . 13 Blast 2 | . . . 2 . . . . Smash 15 | . . . . 2 . . 13 Melee Attacks 60 | . . . . 8 . 1 51 Impact 60 | . . . . 8 . 1 51 Slashing . | . . . . . . . . Piercing . | . . . . . . . . Sneak Attacks 17 | . . . . . . 1 16 Combat Hostiles . | . . . . . . . . Follow-up Attacks . | . . . . . . . . Damage Inflicted 7063 | . 165 122 726 215 . 209 5626 Guns 938 | . 162 . . . . . 776 Cannons 1165 | . . 116 721 . . 37 291 Explosions 2398 | . . . . 47 . 105 2246 Melee 2516 | . . . . 168 . 58 2290 Ramming 46 | . 3 6 5 . . 9 23 Kinetic 1277 | . 162 116 721 . . . 278 Thermal 690 | . . . . 47 . 37 606 Explosive 2036 | . . . . . . 105 1931 Electromagnetic 498 | . . . . . . . 498 Impact 2516 | . . . . 168 . 58 2290 Slashing . | . . . . . . . . Piercing . | . . . . . . . . Highest Corruption 4 | . . . . . . . 4 Average Corruption 3 | . . . . . . . 3 Corruption Purged . | . . . . . . . . Corruption Blocked . | . . . . . . . . Effects 39 | . . . . . . . 39 Message Errors 12 | . . . . . . . 12 Matter Fused 7 | . . . . . . . 7 Heat Flow Errors 9 | . . . . . . . 9 Energy Discharges 2 | . . . . . . . 2 Parts Rejected 1 | . . . . . . . 1 Data Loss (minor) 4 | . . . . . . . 4 Misfires 3 | . . . . . . . 3 Alerts 1 | . . . . . . . 1 Overload Shots . | . . . . . . . . Overflow Damage 1141 | . . . 17 57 . 18 1049 Projectiles 39 | . . . 17 . . . 22 Explosions 23 | . . . . . . . 23 Melee 1079 | . . . . 57 . 18 1004 Knockbacks 15 | . . . 9 1 . 1 4 Impact 5 | . . . . 1 . 1 3 Kinetic 9 | . . . 9 . . . . Secondary 1 | . . . . . . . 1 Self-Inflicted Damage 93 | . . . . 47 . . 46 Shots 5 | . . . . 1 . . 4 Rammed 11 | . 2 1 1 . . 2 5 Targets Rammed 12 | . 2 1 1 . . 3 5 Kicked . | . . . . . . . . Crushed 1 | . . . . . . 1 . Highest Temperature 474 | . . 36 150 . . 74 474 Average Temperature 152 | . . 16 40 . . 40 178 Received Heat Transfer 1023 | . 48 . 99 48 . . 828 Effects 15 | . . . . . . . 15 Shutdowns 5 | . . . . . . . 5 Energy Bleed 1 | . . . . . . . 1 Interference 3 | . . . . . . . 3 Matter Decay 1 | . . . . . . . 1 Short Circuit 1 | . . . . . . . 1 Damage (minor) 4 | . . . . . . . 4 Siege Activations . | . . . . . . . . Robots Corrupted 2 | . . . . . . . 2 Combat Hostiles 2 | . . . . . . . 2 Parts Fried 30 | . . . . 3 . 2 25 Impact Corruptions 37 | . . . . 2 . 1 34 Robots Melted . | . . . . . . . . Combat Hostiles . | . . . . . . . . Parts Melted . | . . . . . . . . Heat Transferred 1220 | . . . . 50 . 80 1090 Parts Sabotaged . | . . . . . . . . Parts Stolen . | . . . . . . . . Parts Stripped . | . . . . . . . . Power Chain Reactions 6 | . . . . . . . 6 Alert | -11 -10 -10 -9 -9 -9 -8 -8 ------- Run | Yrd Mat Min Mat Min Exi Min Mat Peak Influence 496 | . 56 91 337 253 . 94 496 Initial 127 | . . 21 35 127 . . 36 Average 215 | . 35 27 183 169 . 49 297 Maximum Alert Level 2 | . . . 1 1 . . 2 Low Security (%) 53 | 100 100 100 54 54 . 100 36 Level 1 16 | . . . 45 45 . . 10 Level 2 30 | . . . . . . . 53 Level 3 . | . . . . . . . . Level 4 . | . . . . . . . . Level 5 . | . . . . . . . . High Security . | . . . . . . . . Max Security . | . . . . . . . . Squads Dispatched 5 | . . . . . . . 5 Investigation 1 | . . . . . . . 1 Extermination . | . . . . . . . . Reinforcement 4 | . . . . . . . 4 Assault . | . . . . . . . . Garrison . | . . . . . . . . Intercept . | . . . . . . . . Searches Triggered . | . . . . . . . . Construction Impeded 1 | . . . . . . . 1 Haulers Reinforced . | . . . . . . . . Active Scanning Responses . | . . . . . . . . Cargo Convoy Interrupts . | . . . . . . . . Stealth | -11 -10 -10 -9 -9 -9 -8 -8 --------- Run | Yrd Mat Min Mat Min Exi Min Mat Distress Signals 6 | . . . . . . . 6 Communications Jammed . | . . . . . . . . Distress Signals . | . . . . . . . . Times Spotted 73 | . 3 4 18 4 . 3 41 Peak Tracking Total 7 | . 2 3 7 2 . 3 7 Tactical Retreats 4 | . . . 1 . . . 3 Traps | -11 -10 -10 -9 -9 -9 -8 -8 ------- Run | Yrd Mat Min Mat Min Exi Min Mat Traps Triggered 2 | . . . . . . . 2 Indirectly . | . . . . . . . . Trap Hack Attempts . | . . . . . . . . Triggered . | . . . . . . . . Disarmed . | . . . . . . . . Reprogrammed . | . . . . . . . . Reused . | . . . . . . . . Traps Extracted . | . . . . . . . . Installed . | . . . . . . . . Triggered 1 | . . . . . . . 1 Machines | -11 -10 -10 -9 -9 -9 -8 -8 ---------- Run | Yrd Mat Min Mat Min Exi Min Mat Machines Disabled 4 | . . . . 1 . . 3 Max in Single Turn 1 | . . . . 1 . . 1 Machines Repaired . | . . . . . . . . Machines Dismantled . | . . . . . . . . Machines Sabotaged . | . . . . . . . . Overloaded Fab Kills . | . . . . . . . . Hacking | -11 -10 -10 -9 -9 -9 -8 -8 --------- Run | Yrd Mat Min Mat Min Exi Min Mat Machines Accessed 5 | . 1 . . . 1 . 3 Terminals 3 | . 1 . . . . . 2 Fabricators . | . . . . . . . . Repair Stations 1 | . . . . . . . 1 Recycling Units . | . . . . . . . . Scanalyzers . | . . . . . . . . Garrison Access . | . . . . . . . . Total Hacks 12 | . 1 . . . 1 . 10 Successful 5 | . . . . . 1 . 4 Failed 7 | . 1 . . . . . 6 Catastrophic 2 | . 1 . . . . . 1 Database Lockouts . | . . . . . . . . Manual 7 | . 1 . . . 1 . 5 Terminals 6 | . 1 . . . . . 5 Fabricators . | . . . . . . . . Repair Stations 5 | . . . . . . . 5 Recycling Units . | . . . . . . . . Scanalyzers . | . . . . . . . . Garrison Access . | . . . . . . . . Terminal Hacks 2 | . . . . . 1 . 1 Emergency Access Points 1 | . . . . . . . 1 Derelict Proto ID Bank 1 | . . . . . 1 . . Fabricator Hacks . | . . . . . . . . Repair Station Hacks 3 | . . . . . . . 3 Scan Component 2 | . . . . . . . 2 Repair 1 | . . . . . . . 1 Recycling Unit Hacks . | . . . . . . . . Scanalyzer . | . . . . . . . . Garrison Access Hacks . | . . . . . . . . Unauthorized Hacks . | . . . . . . . . Terminals . | . . . . . . . . Fabricators . | . . . . . . . . Repair Stations . | . . . . . . . . Recycling Units . | . . . . . . . . Scanalyzers . | . . . . . . . . Garrison Access . | . . . . . . . . Data Cores Recovered . | . . . . . . . . Used . | . . . . . . . . Hacking Detections 3 | . 1 . . . . . 2 Full Trace Events . | . . . . . . . . Feedback Events . | . . . . . . . . Feedback Blocked . | . . . . . . . . Robot Schematics Acquired . | . . . . . . . . Robots Built . | . . . . . . . . Authchips . | . . . . . . . . Time . | . . . . . . . . Total Robot Build Rating . | . . . . . . . . Part Schematics Acquired . | . . . . . . . . Parts Built . | . . . . . . . . Authchips . | . . . . . . . . Time . | . . . . . . . . Total Part Build Rating . | . . . . . . . . Parts Repaired 1 | . . . . . . . 1 Time 26 | . . . . . . . 26 Parts Recycled . | . . . . . . . . Recycled Matter . | . . . . . . . . Retrieved Matter . | . . . . . . . . Retrieved Components . | . . . . . . . . Parts Scanalyzed . | . . . . . . . . Part Schematics Acquired . | . . . . . . . . Parts Damaged . | . . . . . . . . Bothacking | -11 -10 -10 -9 -9 -9 -8 -8 ------------ Run | Yrd Mat Min Mat Min Exi Min Mat Used RIF Installer . | . . . . . . . . Robots Hacked . | . . . . . . . . Non-combat . | . . . . . . . . Combat . | . . . . . . . . Robot Hacks Applied . | . . . . . . . . Relay Couplers Released . | . . . . . . . . Fabnet Peak Effective % . | . . . . . . . . Robots Rewired . | . . . . . . . . Allies Hacked . | . . . . . . . . Hacks Repelled . | . . . . . . . . Allies | -11 -10 -10 -9 -9 -9 -8 -8 -------- Run | Yrd Mat Min Mat Min Exi Min Mat Total Allies . | . . . . . . . . Largest Group . | . . . . . . . . Highest-Rated Group . | . . . . . . . . Highest-Rated Ally . | . . . . . . . . Total Orders . | . . . . . . . . Ally Attacks . | . . . . . . . . Total Damage . | . . . . . . . . Kills . | . . . . . . . . Allies Corrupted . | . . . . . . . . Allies Melted . | . . . . . . . . Intel | -11 -10 -10 -9 -9 -9 -8 -8 ------- Run | Yrd Mat Min Mat Min Exi Min Mat Robot Analysis Total . | . . . . . . . . Derelict Logs Recovered 2 | . . 1 . 1 . . . Drone Launches . | . . . . . . . . Drone Recoveries . | . . . . . . . . Exploration | -11 -10 -10 -9 -9 -9 -8 -8 ------------- Run | Yrd Mat Min Mat Min Exi Min Mat Turns Passed 4450 | 68 213 204 357 562 364 370 2312 Spaces Moved 2338 | 45 111 116 171 332 227 220 1116 Core 190 | 14 . . 19 . . . 157 Treads 1893 | 31 111 116 152 332 227 220 704 Legs . | . . . . . . . . Wheels 95 | . . . . . . . 95 Hover 160 | . . . . . . . 160 Flight . | . . . . . . . . Fastest Speed 50 | 50 160 160 50 160 160 160 50 Average Speed 158 | 138 160 160 147 160 160 160 159 Slowest Speed 320 | 160 160 160 160 160 160 160 320 Overloaded Moves . | . . . . . . . . Propulsion Burnouts . | . . . . . . . . Robots Hopped . | . . . . . . . . Cave-ins Triggered . | . . . . . . . . Exploration Rate (%) 40 | 4 24 31 18 63 61 65 56 Regions Visited 7 Branch Regions 4 Pre-discovered Areas . | . . . . . . . . Known Exits Taken 2 | . . . 1 . 1 . . Unknown Exits Taken 5 | 1 1 1 . 1 . 1 . Scrap Searched 2 | . . . . 2 . . . Spaces Dug . | . . . . . . . . Terrain Destroyed 196 | . . . . 11 . 16 169 Melee . | . . . . . . . . Projectile . | . . . . . . . . AOE 196 | . . . . 11 . 16 169 Terrain Rammed . | . . . . . . . . Walls Destroyed . | . . . . . . . . Machines Disabled . | . . . . . . . . Actions | -11 -10 -10 -9 -9 -9 -8 -8 --------- Run | Yrd Mat Min Mat Min Exi Min Mat Total 2777 | 49 127 122 210 347 227 229 1466 Wait 159 | . . . . 2 . . 157 Move 2331 | 44 110 115 170 331 226 219 1116 Hop . | . . . . . . . . Pick Up 9 | . . . 2 . . . 7 Fast Attach 49 | 5 2 . 4 4 1 2 31 Attach 7 | . . . . 2 . . 5 Detach 2 | . . . . . . . 2 Swap 9 | . 1 . . . . . 8 Drop 19 | . 3 . . . . 1 15 Fire 120 | . 9 6 33 . . 3 69 Melee 60 | . . . . 8 . 1 51 Ram 1 | . . . . . . . 1 Kick . | . . . . . . . . Crush 11 | . 2 1 1 . . 3 4 Escape Stasis . | . . . . . . . . Rewire . | . . . . . . . . Trap . | . . . . . . . . Miscellaneous . | . . . . . . . . Route ------- -11/Scrapyard -10/Materials -10/Mines -9/Materials (discovered 2 exits: *Min / [*Sto]) -9/Mines -9/Exiles (discovered 2 exits: *Min x2) -8/Mines -8/Materials (discovered 1 exit: [*Fac]) History --------- Turn | Location | Event 14 | -11/Scrapyard | Discovered new exit (range 16) 69 | -11/Scrapyard | Entered Materials 262 | -10/Materials | Discovered new exit (range 12) 282 | -10/Materials | Entered Mines 283 | -10/Mines | Assembled infested the area 307 | -10/Mines | Build established: Mutant 458 | -10/Mines | Discovered new exit (range 10) 486 | -10/Mines | Entered Materials 486 | -9/Materials | Evolved 2 slots: Weapon x2 487 | -9/Materials | Identified exit to Mines 515 | -9/Materials | Discovered new exit (range 12) 726 | -9/Materials | Destroyed 7 combat bots 843 | -9/Materials | Entered Mines 868 | -9/Mines | Lost 8 parts (2p2n2u2w) 1124 | -9/Mines | Found a damaged Exp. Sensor Array with a note attached 1156 | -9/Mines | Met a Derelict bent on vengeance 1325 | -9/Mines | Learned 2 Materials zone layouts 1395 | -9/Mines | Deemed a non-threat by the Exiles lab entrance 1397 | -9/Mines | Discovered new exit (range 5) 1405 | -9/Mines | Entered Exiles 1406 | -9/Exiles | Identified exit to Mines 1450 | -9/Exiles | Met 8R-AWN 1477 | -9/Exiles | Met EX-HEX 1532 | -9/Exiles | Met EX-BIN 1549 | -9/Exiles | Aligned with FarCom system 1551 | -9/Exiles | Given EX-Vault access code 1589 | -9/Exiles | Opened EX-Vault 1601 | -9/Exiles | Found Gui. Plasma Cannon 1634 | -9/Exiles | Warned to stay clear of 0b10 Research branches 1689 | -9/Exiles | Met EX-DEC 1754 | -9/Exiles | Discovered exit to Mines (range 10) 1769 | -9/Exiles | Left Exiles lab with Gui. Plasma Cannon 1769 | -9/Exiles | Entered Mines 2064 | -8/Mines | Build established: Skirmisher 2120 | -8/Mines | Discovered new exit (range 13) 2139 | -8/Mines | Entered Materials 2139 | -8/Materials | Evolved 2 slots: Utility x2 2556 | -8/Materials | Repaired Lgt. Treads 2729 | -8/Materials | Build established: Tank 3104 | -8/Materials | Build established: Bomber 3608 | -8/Materials | Core integrity fell below 50% 3635 | -8/Materials | Lost 10 parts (1p2n3u4w) 3985 | -8/Materials | Core integrity fell below 20% 4120 | -8/Materials | Lost 5 parts (1n2u2w) 4436 | -8/Materials | Discovered new exit (range 15) 4451 | -8/Materials | Destroyed by H-61 Shepherd with Heavy Assault Cannon Last Messages --------------- Dropped Wheel. Acquired 18 matter. Acquired Imp. Light Cannon. R-06 Scavenger collects VTOL Module. Acquired Imp. Light Cannon. Acquired 12 matter. Connecting with Terminal... >>Access(Emergency) No emergency access doors found in local area. System corrupted: Matter fused (-10). R-06 Scavenger collects Wheel. R-06 Scavenger collects VTOL Module. System corrupted: Energy discharge (-43). EXIT=FOUND Penetrated by Slug. U-05 Engineer builds a Wall. Slug penetrates Wall. Terminal disabled. H-61 Shepherd calls for reinforcements. ALERT: Hostile activity reported, dispatching reinforcements to area. Map ----- +----------------------------------------------------+ | | | | | | | | | | | | | | | | | ?????????????????????????????????################# | | ?????????????????????????????????# # | | ?????????????????????????????????# # | | ?????????????????????????????????# """ """ """ # | | ?????????????????????????????????# """ """ """ # | | ????????????????#########?#??##### """ """ """ # | | ???????????????=== # # ?? ## # | | ????????????????== < ?? ## """ """ """ # | | ????????????????? ??" ## """ """ Y" # | | ?????????????????? ??" ## """ """ """ # | | ??????????????????? H ??" ## # | | ???????????????????? ?? ###########+###### | | ????????????????????# #??####?# | | ????????????????????# #???????# | | ????????????????????# #???????# "" | | ????????????????????+ #???????# "" | | ????????????????????# #???????# "T | | ????????????????????# @##??????# "" | | ????????????????????## %;######?# "" | | ????????????????????## ; ### ! | | ????????????????????## #u ## | | ?????????????????????# + ## """ " | | ?????########????????# # ## """"" "" | | ###### ########## t%# # # """"" "" | | | # + ######## # """" "" | | # """ ###########+########### """ " | | # """ #???# + | | """ # """ #???# ###### | | """ # #???# ### # | | """ ####+###???# ## # | | # ##????# ## # | | # # ##????# ## ## ##### | | #/##### #####?################# # # ## | | #??# # ## # # ## ###### | | #### # # # # ## #????? | | " # #### ### ## #????? | | #### # # # # ### #????? | | #??#] # ## # ###### #????? | | # [ #######??#] ] # #### T#!! #????? | | #????????# ! # #??# ##!! ###### | | #"S #????????###### #??# ##[[ | | #""" ##????##############+#####??# ##[[ ######## | +----------------------------------------------------+ Best States ------------- Heat Dissipation 31 Energy Generation 14 Energy Capacity 250 Matter Stores 300 Matter Capacity 300 Sight Range 16 Terrain Scan Density 10 Armor Coverage 450 Weapon Shielding 66 Evasion (%) 50 Targeting Accuracy 6 Melee Accuracy 6 Recoil Reduction 2 Particle Charging 15 Offensive Hacking 10 Defensive Hacking 10 Item Schematics ----------------- None Robot Schematics ------------------ None Fabricated ------------ Nothing Alien Tech Used ----------------- None Achievements -------------- Batter Up Challenges ------------ None Game ------ Seed BarrageMetaField Manual? 0 Play Time 00:28:10 Cumulative 51.5 hours Start 2024.07.28 @ 18:03:10 End 2024.07.28 @ 18:30:18 Sessions 1 Manual Loads 0 Difficulty Rogue Special Mode None Game No. 117 Rogue 47 Adventurer 70 Explorer 0 Win Type - Total 0 Types 0/0/0/0/0/0/0/0/0 Lore% 34 Gallery% 37 Achievement% 30 Wizard Run 0 Options --------- Layout 0 ASCII 0 Keyboard 0 Movement Arrows Keybinds 0 Fullscreen 1 Font 24/Smallcaps Map View 76x50 Zoom Use 0% Tactical HUD 0 Map Filters NONE Filters NONE Steam 1 RUN: 02276528-ba86-463b-ba48-78cc6151bf20